bitfinex/quotes_SOLUSD_20251024
["timestamp","ask_amount","ask_price","bid_price","bid_amount"]
[1761268979619,1.64876307,193.02,192.97,41.30193259]
[1761268979801,1.64876307,193.0,192.99,22.88]
[1761268980202,2.30876307,193.0,192.99,22.88]
[1761268980514,2.30876307,193.0,192.96,41.30242022]
[1761268980711,2.30876307,192.99,192.98,22.88]
[1761268980893,5.18091711,193.02,192.96,41.30242022]
[1761268981090,1.64876307,192.99,192.96,41.30242022]
[1761268981413,1.64876307,192.98,192.94,64.18271871]
[1761268981918,2.30876307,192.98,192.94,64.18271871]
[1761268982218,2.30876307,192.98,192.94,64.88271871]
[1761268982416,2.30876307,192.97,192.94,64.18271871]
[1761268982809,0.66,192.97,192.94,64.18271871]
[1761268983012,2.30876307,192.96,192.94,59.0]
[1761268983211,1.64876307,192.95,192.92,36.12]
[1761268983402,1.64876307,192.94,192.9,5.18402924]
[1761268983603,2.30876307,192.93,192.89,36.12]
[1761268983807,1.64876307,192.93,192.92,22.88]
[1761268984016,2.30876307,192.93,192.92,22.88]
[1761268984217,1.64876307,192.94,192.92,22.88]
[1761268984603,2.30876307,192.94,192.92,22.88]
[1761268985518,1.64876307,192.94,192.92,22.88]
[1761268985721,1.64876307,192.94,192.9,5.18394859]
[1761268985722,2.30876307,192.93,192.89,36.12]
[1761268985906,1.64876307,192.92,192.89,36.12]
[1761268986110,2.30876307,192.92,192.89,36.12]
[1761268986318,2.30876307,192.91,192.87,64.18477576]
[1761268986707,2.30876307,192.91,192.87,64.88477576]
[1761268987423,1.64876307,192.92,192.88,0.7]
[1761268987598,1.64876307,192.92,192.88,5.88441137]
[1761268990628,0.66,192.96,192.89,2.34876307]
[1761268990832,2.30876307,192.96,192.91,22.88]
[1761268991327,0.69,192.95,192.91,25.24876307]
[1761268991513,0.69,192.95,192.91,23.6]
[1761268992638,0.69,192.95,192.91,28.78372948]
[1761268994438,2.33876307,192.95,192.91,28.78372948]
[1761268994652,1.64876307,192.94,192.91,22.88]
[1761268994816,1.64876307,192.92,192.86,2.36876307]
[1761268995020,1.64876307,192.91,192.89,22.88]
[1761268995238,0.69,192.94,192.89,22.88]
[1761268995429,1.64876307,192.91,192.89,22.88]
[1761268995921,2.33876307,192.9,192.85,0.2]
[1761268996122,1.64876307,192.87,192.85,0.2]
[1761268996436,1.64876307,192.88,192.85,0.2]
[1761268996831,1.64876307,192.87,192.85,0.2]
[1761268997641,2.33876307,192.87,192.85,0.2]
[1761268999951,1.64876307,192.87,192.85,0.2]
[1761269001643,2.33876307,192.87,192.85,0.2]
[1761269002023,1.64876307,192.87,192.85,0.2]
[1761269002336,1.64876307,192.91,192.86,0.72]
[1761269002658,1.64876307,192.92,192.86,2.36876307]
[1761269002830,2.58126344,192.92,192.86,3.30126344]
[1761269003144,8.45451425,192.93,192.87,3.30126344]
[1761269003441,6.43492329,192.92,192.87,0.72]
[1761269003613,2.58126344,192.92,192.87,0.72]
[1761269003819,3.27126344,192.92,192.87,0.72]
[1761269004026,3.27126344,192.92,192.87,5.90471522]
[1761269004834,3.27126344,192.92,192.88,0.72]
[1761269005031,0.69,192.91,192.87,0.72]
[1761269005336,3.27126344,192.92,192.87,5.90482952]
[1761269005844,2.58126344,192.92,192.88,0.72]
[1761269006532,3.27126344,192.92,192.88,0.72]
[1761269008233,3.27126344,192.92,192.87,5.18482952]
[1761269008435,3.27126344,192.92,192.87,5.85482952]
[1761269009040,3.27126344,192.92,192.88,0.67]
[1761269009643,2.58126344,192.92,192.87,5.18482952]
[1761269009946,0.72,192.91,192.86,7.7663718]
[1761269010127,0.72,192.91,192.86,8.4363718]
[1761269010443,0.72,192.91,192.87,0.67]
[1761269011145,2.58126344,192.88,192.85,23.08]
[1761269011347,2.58126344,192.88,192.85,0.2]
[1761269011533,0.72,192.87,192.85,0.2]
[1761269012432,3.30126344,192.87,192.85,0.2]
[1761269012632,0.72,192.87,192.85,0.2]
[1761269012827,2.58126344,192.88,192.85,0.2]
[1761269013047,0.72,192.88,192.85,0.2]
[1761269014839,0.72,192.92,192.86,3.25126344]
[1761269015154,3.85598609,192.91,192.87,2.58126344]
[1761269015369,3.85598609,192.91,192.86,0.67]
[1761269015560,0.72,192.9,192.86,0.67]
[1761269016054,10.87647521,192.94,192.85,7.96647171]
[1761269016248,0.72,192.9,192.85,8.63647171]
[1761269016635,0.72,192.9,192.86,0.67]
[1761269016850,3.30126344,192.92,192.86,0.67]
[1761269017052,3.85710617,192.91,192.86,0.67]
[1761269017249,3.85710617,192.91,192.87,2.58126344]
[1761269017453,8.48422187,192.94,192.88,0.67]
[1761269017636,3.85754483,192.93,192.88,3.25126344]
[1761269018054,3.85754483,192.93,192.88,8.43569086]
[1761269018256,3.85754483,192.93,192.89,0.67]
[1761269018650,3.85754483,192.93,192.89,3.25126344]
[1761269018853,3.30126344,192.96,192.89,3.25126344]
[1761269018854,3.30126344,192.96,192.9,0.67]
[1761269019050,3.85829755,192.95,192.9,0.67]
[1761269019252,3.85829755,192.94,192.9,0.67]
[1761269019454,3.85829755,192.93,192.9,0.67]
[1761269019661,5.18271084,192.95,192.9,0.67]
[1761269019841,3.85945629,192.94,192.9,0.67]
[1761269020360,3.85945629,192.93,192.9,0.67]
[1761269020653,5.90271084,192.95,192.9,0.67]
[1761269020959,3.86074434,192.94,192.9,0.67]
[1761269021140,3.86074434,192.93,192.9,0.67]
[1761269021341,3.86218004,192.92,192.9,0.67]
[1761269021542,5.87271084,192.95,192.9,0.67]
[1761269021743,3.86218032,192.94,192.9,8.43528968]
[1761269021948,3.86218032,192.93,192.9,8.43528968]
[1761269022148,3.86218032,192.92,192.91,3.23126344]
[1761269022345,7.7623307,193.02,192.92,0.65]
[1761269022540,3.86318183,193.01,192.97,2.58126344]
[1761269022752,3.86318183,193.0,192.97,2.58126344]
[1761269022951,3.86318183,192.99,192.98,2.58126344]
[1761269023259,3.86367236,192.99,192.98,3.23126344]
[1761269023579,4.55367236,193.03,192.98,3.23126344]
[1761269023754,4.55367236,193.02,192.97,2.58126344]
[1761269023941,3.86367236,193.01,192.97,2.58126344]
[1761269024141,0.69,193.02,192.97,3.23126344]
[1761269024142,3.86367236,193.0,192.97,3.23126344]
[1761269024458,5.87081438,193.02,192.95,0.65]
[1761269024764,3.86444347,193.01,192.96,2.58126344]
[1761269024965,5.87081438,193.02,192.96,2.58126344]
[1761269024966,3.86444347,193.0,192.96,2.58126344]
[1761269025157,5.87081438,193.02,192.96,3.23126344]
[1761269025454,3.86373681,193.01,192.96,3.23126344]
[1761269025647,5.87081438,193.02,192.96,8.4136231]
[1761269025648,3.86373681,193.0,192.96,8.4136231]
[1761269025844,5.87081438,193.02,192.96,8.4136231]
[1761269026048,3.86373681,193.01,192.96,8.4136231]
[1761269026265,3.86373681,193.0,192.97,0.65]
[1761269026465,5.87081438,193.02,192.97,0.65]
[1761269026759,3.86403674,193.01,192.97,0.65]
[1761269027065,3.86403674,193.0,192.96,0.65]
[1761269028762,0.69,192.99,192.94,8.41398035]
[1761269028955,4.55403674,192.99,192.94,8.41398035]
[1761269029156,8.45235388,193.01,192.95,0.65]
[1761269029358,3.8636438,193.0,192.95,0.65]
[1761269029667,3.8636438,192.99,192.95,0.65]
[1761269029967,4.5536438,192.99,192.94,5.18271691]
[1761269030167,4.5536438,192.99,192.94,5.83271691]
[1761269030368,3.8636438,192.99,192.94,5.83271691]
[1761269030569,4.5536438,192.99,192.94,5.83271691]
[1761269031271,0.69,192.98,192.94,5.83271691]
[1761269031654,2.58126344,192.99,192.94,5.83271691]
[1761269031965,4.55305663,192.98,192.94,5.18271691]
[1761269033054,3.86305663,192.98,192.94,5.18271691]
[1761269033255,38.70126344,193.02,192.95,3.23126344]
[1761269033455,3.86212982,193.01,192.96,0.65]
[1761269033654,3.86212982,193.0,192.96,0.65]
[1761269033855,3.86212982,192.99,192.96,0.65]
[1761269034055,39.39126344,193.02,192.96,0.65]
[1761269034360,3.86212897,193.01,192.96,0.65]
[1761269034674,3.86212897,193.0,192.96,0.65]
[1761269034971,3.86212897,192.99,192.95,5.18258394]
[1761269035272,7.13339241,192.99,192.95,5.18258394]
[1761269035476,3.27126344,192.99,192.95,5.18258394]
[1761269035975,3.27126344,192.99,192.95,5.83258394]
[1761269036682,0.69,192.99,192.95,5.83258394]
[1761269037058,4.55107055,192.99,192.95,5.83258394]
[1761269037873,0.69,192.99,192.95,5.83258394]
[1761269039161,0.69,192.99,192.95,5.18258394]
[1761269039462,3.27126344,192.99,192.95,5.83258394]
[1761269039663,0.69,192.99,192.95,5.83258394]
[1761269039971,0.69,192.99,192.95,0.65]
[1761269040176,3.27126344,192.99,192.95,0.65]
[1761269040593,2.58126344,192.98,192.93,22.88]
[1761269040768,2.58126344,192.95,192.93,22.88]
[1761269040953,2.58126344,192.94,192.88,41.32454513]
[1761269041154,2.58126344,192.91,192.85,15.76783684]
[1761269041468,2.58126344,192.87,192.85,0.2]
[1761269041781,2.58126344,192.87,192.86,22.88]
[1761269042281,5.18395369,192.91,192.86,22.88]
[1761269042282,2.58126344,192.88,192.86,22.88]
[1761269042779,2.58126344,192.88,192.85,5.38528309]
[1761269042980,2.58126344,192.88,192.85,6.03528309]
[1761269043366,2.58126344,192.88,192.85,5.38528309]
[1761269043568,2.58126344,192.88,192.85,6.03528309]
[1761269043767,0.69,192.9,192.85,6.03528309]
[1761269043970,2.58126344,192.88,192.85,6.03528309]
[1761269044765,2.58126344,192.86,192.85,0.2]
[1761269045184,3.27126344,192.86,192.85,0.2]
[1761269045663,7.13351552,192.86,192.85,0.2]
[1761269046791,6.44351552,192.86,192.85,0.2]
[1761269047088,7.13351552,192.86,192.85,0.2]
[1761269047290,12.31862388,192.86,192.85,0.2]
[1761269048574,9.73736044,192.86,192.85,0.2]
[1761269048896,12.31862388,192.86,192.85,0.2]
[1761269049801,11.56647521,192.91,192.85,0.85]
[1761269049972,2.58126344,192.86,192.85,0.85]
[1761269050284,2.58126344,192.86,192.85,0.2]
[1761269051675,2.58126344,192.86,192.85,0.88]
[1761269051962,2.58126344,192.86,192.85,0.2]
[1761269052167,2.58126344,192.87,192.85,0.2]
[1761269054093,2.58126344,192.86,192.85,0.2]
[1761269054790,3.29126344,192.86,192.85,0.2]
[1761269055390,8.4763718,192.86,192.85,0.2]
[1761269055597,48.45224146,192.86,192.85,0.2]
[1761269056876,59.32871667,192.86,192.85,0.2]
[1761269057391,45.87097802,192.86,192.85,0.2]
[1761269057591,59.32871667,192.86,192.85,0.2]
[1761269059280,72.29148759,192.86,192.81,0.2]
[1761269059591,2.58126344,192.82,192.81,0.2]
[1761269059788,42.5771331,192.82,192.81,0.2]
[1761269060099,43.2871331,192.82,192.81,0.2]
[1761269060296,39.43126344,192.82,192.81,0.2]
[1761269060473,43.90744744,192.82,192.81,0.2]
[1761269061879,38.72126344,192.82,192.81,0.88]
[1761269062405,38.72126344,192.82,192.81,0.2]
[1761269062808,37.79395694,192.82,192.81,0.2]
[1761269067407,42.98014094,192.82,192.81,0.2]
[1761269070227,43.66014094,192.82,192.81,0.2]
[1761269071597,54.53661615,192.82,192.81,0.2]
[1761269071893,58.38269777,192.82,192.81,0.2]
[1761269073617,95.88211472,192.82,192.78,0.2]
[1761269073820,12.53043215,192.79,192.78,0.2]
[1761269074121,57.70350479,192.79,192.78,0.2]
[1761269074319,58.38350479,192.79,192.78,0.2]
[1761269074498,56.72954785,192.79,192.78,0.2]
[1761269074821,57.70350479,192.79,192.78,0.2]
[1761269075004,58.38350479,192.79,192.78,0.2]
[1761269075898,10.87647521,192.78,192.77,0.1]
[1761269076199,22.24377385,192.78,192.77,0.1]
[1761269084034,58.38377385,192.78,192.77,0.1]
[1761269084335,71.35192407,192.78,192.74,0.2]
[1761269084533,12.53043215,192.75,192.74,0.2]
[1761269084714,52.51651377,192.75,192.74,0.2]
[1761269084913,53.20651377,192.75,192.74,0.2]
[1761269088433,58.39458121,192.75,192.74,0.2]
[1761269091326,57.70458121,192.75,192.74,0.2]
[1761269091728,10.688106,192.75,192.74,0.9]
[1761269091928,41.64003856,192.75,192.74,0.9]
[1761269092135,5.50003856,192.75,192.74,0.9]
[1761269092341,41.64003856,192.75,192.74,0.9]
[1761269093427,5.50003856,192.75,192.74,0.9]
[1761269093638,41.64003856,192.75,192.74,0.9]
[1761269096643,39.98608162,192.75,192.74,0.9]
[1761269097053,3.84608162,192.75,192.74,0.9]
[1761269097356,1.65395694,192.75,192.74,0.9]
[1761269099535,10.71161742,192.75,192.74,0.2]
[1761269099745,22.27809263,192.75,192.74,0.2]
[1761269100040,10.87647521,192.74,192.72,0.1]
[1761269100235,52.54002519,192.73,192.72,0.1]
[1761269100548,53.23002519,192.73,192.72,0.1]
[1761269101137,58.41863101,192.73,192.72,0.1]
[1761269102624,56.76467407,192.73,192.72,0.1]
[1761269102823,57.72863101,192.73,192.72,0.1]
[1761269103431,56.07467407,192.73,192.72,0.1]
[1761269103630,57.72863101,192.73,192.72,0.1]
[1761269106535,10.7121558,192.73,192.72,0.1]
[1761269106846,3.86959304,192.73,192.72,0.8]
[1761269107049,46.8521558,192.73,192.72,0.8]
[1761269107354,46.8521558,192.73,192.72,0.1]
[1761269108942,45.19819886,192.73,192.72,0.1]
[1761269109138,58.41863101,192.73,192.72,0.1]
[1761269109338,10.87647521,192.72,192.69,0.1]
[1761269109531,3.30791388,192.7,192.69,0.1]
[1761269109736,7.17750692,192.7,192.69,0.1]
[1761269110331,43.31750692,192.7,192.69,0.1]
[1761269111051,46.85296357,192.7,192.69,0.1]
[1761269112246,10.71296357,192.7,192.69,0.1]
[1761269112551,9.05900663,192.7,192.69,0.1]
[1761269112732,46.85296357,192.7,192.69,0.81]
[1761269112927,41.66354998,192.7,192.69,0.81]
[1761269113340,46.85296357,192.7,192.69,0.1]
[1761269113753,46.85296357,192.7,192.69,0.81]
[1761269114133,46.85296357,192.7,192.69,0.1]
[1761269114338,48.50692051,192.7,192.69,0.1]
[1761269114551,82.93339572,192.7,192.69,0.1]
[1761269114755,100.86880053,192.7,192.66,0.2]
[1761269114928,12.53043215,192.67,192.66,0.2]
[1761269115133,52.54002519,192.67,192.66,0.2]
[1761269115333,53.21002519,192.67,192.66,0.2]
[1761269115850,56.74628987,192.67,192.66,0.2]
[1761269116031,57.73024681,192.67,192.66,0.2]
[1761269117745,58.40024681,192.67,192.66,0.2]
[1761269120142,21.59024681,192.67,192.66,0.2]
[1761269120347,57.75024681,192.67,192.66,0.2]
[1761269120941,46.8737716,192.67,192.66,0.2]
[1761269121342,58.42024681,192.67,192.66,0.2]
[1761269121540,21.59024681,192.67,192.66,0.2]
[1761269121756,57.75024681,192.67,192.66,0.2]
[1761269122761,46.8737716,192.67,192.66,0.2]
[1761269123561,10.7137716,192.67,192.66,0.91]
[1761269123767,46.8737716,192.67,192.66,0.91]
[1761269124658,45.21981466,192.67,192.66,0.91]
[1761269124853,47.80794702,192.67,192.66,0.91]
[1761269125048,42.6177254,192.67,192.66,0.91]
[1761269126570,3.86959304,192.67,192.66,0.91]
[1761269126763,2.58813236,192.68,192.66,0.91]
[1761269126957,36.16,192.67,192.66,0.2]
[1761269127561,36.16,192.67,192.66,0.86]
[1761269128365,36.16,192.67,192.66,23.74]
[1761269128674,1.0,214.0,192.66,0.86]
[1761269128675,2.71071776,192.73,192.66,0.86]
[1761269128869,42.62225396,192.72,192.67,0.66]
[1761269129175,2.58813236,192.69,192.67,0.66]
[1761269129360,2.58813236,192.68,192.67,0.66]
[1761269129555,6.46232526,192.68,192.67,0.66]
[1761269131567,11.65232849,192.68,192.66,0.2]
[1761269131770,6.46232526,192.67,192.66,0.86]
[1761269132168,2.58813236,192.68,192.66,0.86]
[1761269132364,2.58813236,192.68,192.67,0.66]
[1761269132673,6.46271788,192.68,192.67,0.66]
[1761269134456,6.46271788,192.68,192.66,0.2]
[1761269134657,6.46271788,192.67,192.66,0.86]
[1761269136366,6.46271788,192.67,192.66,0.2]
[1761269136561,36.16,192.68,192.66,0.86]
[1761269136766,38.74813236,192.7,192.66,0.86]
[1761269136985,3.87471627,192.69,192.67,0.66]
[1761269137173,38.74813236,192.7,192.67,0.66]
[1761269137381,3.87524077,192.69,192.67,0.66]
[1761269137563,38.74813236,192.7,192.67,0.66]
[1761269137864,3.87524077,192.69,192.67,0.66]
[1761269138063,38.74813236,192.7,192.67,0.66]
[1761269138265,3.87524077,192.69,192.67,0.66]
[1761269138467,3.87524077,192.68,192.67,0.66]
[1761269138685,3.87524077,192.69,192.67,5.85022162]
[1761269138881,5.18862378,192.73,192.67,5.85022162]
[1761269138882,36.16,192.71,192.67,5.85022162]
[1761269139082,3.87552131,192.7,192.68,0.66]
[1761269139382,3.87552131,192.69,192.68,0.66]
[1761269140973,38.74813236,192.72,192.68,0.66]
[1761269141275,3.87630614,192.71,192.68,0.66]
[1761269141473,38.74813236,192.72,192.68,5.84983867]
[1761269141474,3.87630614,192.7,192.68,5.84983867]
[1761269141665,36.16,192.72,192.68,5.84983867]
[1761269141866,3.87667672,192.71,192.69,0.69]
[1761269142085,3.87667672,192.7,192.69,0.69]
[1761269142400,38.72813236,192.75,192.69,3.27813236]
[1761269142560,3.87733039,192.74,192.69,3.27813236]
[1761269142766,3.87733039,192.73,192.7,0.69]
[1761269142969,3.87733039,192.72,192.7,0.69]
[1761269143193,38.72813236,192.75,192.7,0.69]
[1761269143361,3.87795199,192.74,192.7,0.69]
[1761269143560,3.87795199,192.73,192.7,5.87935602]
[1761269143863,3.87795199,192.72,192.7,5.87935602]
[1761269144056,2.58813236,192.71,192.68,0.69]
[1761269144362,2.58813236,192.69,192.68,0.69]
[1761269144578,6.46783744,192.69,192.66,23.08]
[1761269144781,2.58813236,192.67,192.66,0.89]
[1761269145074,6.46813449,192.67,192.66,0.2]
[1761269146164,11.65835611,192.67,192.66,0.2]
[1761269146885,47.79835611,192.67,192.66,0.2]
[1761269148890,11.65835611,192.67,192.66,0.2]
[1761269149086,47.79835611,192.67,192.66,0.2]
[1761269149283,47.79835611,192.67,192.64,0.39]
[1761269149478,3.24813236,192.7,192.62,5.19153949]
[1761269149479,6.46813449,192.66,192.62,5.19153949]
[1761269149681,2.58813236,192.66,192.62,5.19153949]
[1761269149884,38.72813236,192.67,192.62,5.19153949]
[1761269150097,3.880843,192.66,192.62,5.19153949]
[1761269150277,38.72813236,192.67,192.62,5.19153949]
[1761269150480,3.88091408,192.66,192.62,5.19153949]
[1761269150671,2.58813236,192.67,192.62,5.19153949]
[1761269150872,3.88091437,192.66,192.62,5.19153949]
[1761269151068,2.58813236,192.67,192.62,5.19153949]
[1761269151366,3.88099513,192.66,192.63,5.88128331]
[1761269151565,36.14,192.68,192.63,5.88128331]
[1761269151769,11.53647521,192.72,192.64,3.27813236]
[1761269151770,2.58813236,192.7,192.64,3.27813236]
[1761269152073,3.88040235,192.69,192.65,2.58813236]
[1761269152270,3.88040235,192.68,192.65,3.27813236]
[1761269152468,2.58813236,192.71,192.66,0.69]
[1761269152668,36.14,192.72,192.66,0.69]
[1761269152669,6.46880746,192.7,192.66,0.69]
[1761269152968,3.8806751,192.69,192.66,0.69]
[1761269153168,3.8806751,192.68,192.66,5.88047851]
[1761269153383,2.58813236,192.7,192.66,5.88047851]
[1761269153586,3.88095615,192.69,192.67,0.69]
[1761269153887,3.88095615,192.68,192.67,0.69]
[1761269155090,6.46914025,192.68,192.67,0.69]
[1761269155683,3.88100789,192.68,192.67,0.69]
[1761269155885,6.46914025,192.68,192.65,0.69]
[1761269156086,2.58813236,192.68,192.65,0.69]
[1761269156479,3.8809869,192.67,192.65,0.69]
[1761269156675,2.58813236,192.67,192.65,0.69]
[1761269156993,5.18942038,192.7,192.61,23.08]
[1761269156994,2.58813236,192.66,192.63,28.76128879]
[1761269157371,2.58813236,192.66,192.64,0.69]
[1761269158215,6.46969811,192.65,192.62,0.69]
[1761269158498,6.46969811,192.64,192.62,0.69]
[1761269158797,2.58813236,192.63,192.62,0.69]
[1761269158997,2.58813236,192.64,192.62,0.69]
[1761269159310,6.46978281,192.63,192.61,0.2]
[1761269159472,7.12978281,192.62,192.61,0.2]
[1761269160078,35.20243898,192.62,192.61,0.2]
[1761269160308,48.66704655,192.62,192.61,0.2]
[1761269160891,46.07891419,192.62,192.61,0.2]
[1761269162404,10.87647521,192.61,192.57,0.1]
[1761269162701,2.58813236,192.58,192.57,0.1]
[1761269162892,3.88273773,192.58,192.57,0.1]
[1761269163084,6.47087009,192.58,192.57,0.1]
[1761269163674,3.88273773,192.58,192.57,0.1]
[1761269163881,6.47087009,192.58,192.57,0.1]
[1761269164082,7.13087009,192.58,192.57,0.1]
[1761269164292,12.3235173,192.58,192.57,0.1]
[1761269165203,11.6635173,192.58,192.57,0.1]
[1761269166383,9.07538494,192.58,192.57,0.1]
[1761269166584,6.47087009,192.58,192.57,0.79]
[1761269166789,6.47087009,192.58,192.57,0.1]
[1761269167899,2.58813236,192.58,192.57,0.79]
[1761269170410,2.58813236,192.58,192.57,0.1]
[1761269170721,2.58813236,192.58,192.57,0.79]
[1761269174313,2.58813236,192.58,192.57,0.1]
[1761269177214,2.58813236,192.58,192.57,0.78]
[1761269177605,2.58813236,192.63,192.57,26.24813236]
[1761269178000,2.58813236,192.61,192.58,0.68]
[1761269178296,2.58813236,192.6,192.58,0.68]
[1761269178832,2.58813236,192.59,192.57,0.1]
[1761269178994,2.58813236,192.58,192.57,0.1]
[1761269180394,2.58813236,192.59,192.57,0.1]
[1761269180990,5.19215701,192.6,192.57,0.1]
[1761269181189,2.58813236,192.59,192.57,0.1]
[1761269181385,2.58813236,192.59,192.57,0.78]
[1761269181587,2.58813236,192.64,192.58,2.58813236]
[1761269181811,2.58813236,192.63,192.57,0.78]
[1761269181994,36.16,192.64,192.57,0.78]
[1761269181995,2.58813236,192.62,192.57,0.78]
[1761269182402,2.58813236,192.62,192.57,5.97285199]
[1761269182697,2.58813236,192.62,192.58,0.68]
[1761269183306,2.58813236,192.63,192.58,0.68]
[1761269184020,7.77948869,192.63,192.58,0.68]
[1761269184712,1.65724206,192.62,192.58,0.68]
[1761269187924,1.65724206,192.62,192.58,5.87263539]
[1761269188105,1.65724206,192.62,192.59,0.7]
[1761269188916,1.65724206,192.6,192.57,0.1]
[1761269189109,1.65724206,192.59,192.57,0.1]
[1761269189316,1.65724206,192.58,192.57,0.1]
[1761269191942,2.37724206,192.58,192.57,0.1]
[1761269192108,1.65724206,192.58,192.57,0.1]
[1761269192418,5.52001189,192.58,192.57,0.1]
[1761269193520,6.24001189,192.58,192.57,0.1]
[1761269196021,5.52001189,192.58,192.57,0.1]
[1761269196435,5.52001189,192.58,192.57,0.8]
[1761269196436,3.86276983,192.58,192.57,0.8]
[1761269196611,1.65724206,192.6,192.57,0.8]
[1761269197003,5.19156889,192.62,192.57,0.8]
[1761269197004,1.65724206,192.59,192.57,0.8]
[1761269197737,1.65724206,192.58,192.57,0.8]
[1761269199729,1.65724206,192.59,192.57,0.8]
[1761269200313,3.87287212,192.58,192.57,0.8]
[1761269203938,5.53011418,192.58,192.57,0.8]
[1761269207136,5.53011418,192.58,192.57,0.1]
[1761269207333,5.53011418,192.58,192.57,0.76]
[1761269208137,5.53011418,192.58,192.57,0.1]
[1761269208547,11.41276139,192.58,192.57,0.1]
[1761269211255,11.42412451,192.58,192.57,0.1]
[1761269211419,41.7014773,192.58,192.57,0.1]
[1761269211830,46.89412451,192.58,192.57,0.1]
[1761269212429,47.58412451,192.58,192.57,0.1]
[1761269213346,71.44221774,192.58,192.55,0.2]
[1761269213518,1.65724206,192.56,192.55,0.2]
[1761269213721,5.5414773,192.56,192.55,0.2]
[1761269213920,17.10795251,192.56,192.55,0.2]
[1761269214330,22.30113904,192.56,192.55,0.2]
[1761269220734,20.64389698,192.56,192.55,0.2]
[1761269220934,22.30113904,192.56,192.55,0.2]
[1761269223455,11.42466383,192.56,192.55,0.2]
[1761269223787,47.58466383,192.56,192.55,0.2]
[1761269224550,47.58466383,192.56,192.55,0.86]
[1761269224551,3.88423524,192.56,192.55,0.86]
[1761269225659,5.5414773,192.56,192.55,0.86]
[1761269226040,3.88423524,192.56,192.55,0.86]
[1761269226343,1.65724206,192.6,192.55,6.05345624]
[1761269226528,5.531363,192.59,192.56,0.66]
[1761269226730,3.87412094,192.58,192.56,0.66]
[1761269227061,3.87412094,192.57,192.56,0.66]
[1761269227428,5.531363,192.57,192.56,0.66]
[1761269227837,3.87412094,192.57,192.56,0.66]
[1761269228654,10.72427986,192.57,192.55,0.2]
[1761269228852,5.53097946,192.56,192.55,0.2]
[1761269229960,5.53097946,192.56,192.55,0.86]
[1761269230343,5.53150096,192.56,192.55,0.86]
[1761269230649,5.53221855,192.56,192.55,0.86]
[1761269230860,1.65724206,192.6,192.55,6.05345624]
[1761269231065,3.87594144,192.59,192.56,0.71]
[1761269231238,3.87594144,192.58,192.56,0.71]
[1761269231438,3.87594144,192.57,192.56,0.71]
[1761269231640,1.65724206,192.6,192.56,0.71]
[1761269231849,5.53395229,192.59,192.56,0.71]
[1761269232050,3.87671023,192.58,192.56,0.71]
[1761269232265,1.65724206,192.59,192.56,0.71]
[1761269232570,3.87723614,192.58,192.57,1.65724206]
[1761269232864,1.65724206,192.62,192.57,1.65724206]
[1761269233035,3.87751207,192.61,192.58,0.71]
[1761269233241,3.87751207,192.6,192.58,0.71]
[1761269233467,1.65724206,192.62,192.58,0.71]
[1761269233640,3.8774187,192.61,192.58,0.71]
[1761269233840,3.8774187,192.6,192.58,0.71]
[1761269234066,1.65724206,192.62,192.58,0.71]
[1761269234244,3.87699285,192.61,192.58,0.71]
[1761269234442,3.87699285,192.6,192.58,0.71]
[1761269234644,1.65724206,192.62,192.58,0.71]
[1761269234950,3.8768667,192.61,192.58,5.90252821]
[1761269235152,3.8768667,192.6,192.58,5.90252821]
[1761269235369,1.65724206,192.62,192.59,0.71]
[1761269235544,3.87651192,192.61,192.59,0.71]
[1761269235743,3.87651192,192.6,192.59,0.71]
[1761269235945,1.65724206,192.63,192.59,0.71]
[1761269236161,3.87670832,192.62,192.59,0.71]
[1761269236361,3.87670832,192.61,192.59,0.71]
[1761269236561,1.65724206,192.63,192.59,0.71]
[1761269236762,3.87601002,192.62,192.59,0.71]